[Event "Serbian League 2024"]
[Site "Bajina Basta"]
[Date "2024.09.28"]
[Round "2.12"]
[White "Arsovic, Goran"]
[Black "Pajcin, Lav"]
[Result "1/2-1/2"]
[ECO "E52"]
[WhiteElo "2356"]
[BlackElo "2242"]
[Annotator "ChessBase"]
[PlyCount "154"]
[EventDate "2024.09.26"]
[EventType "team-tourn"]
[EventCountry "SRB"]
[SourceTitle "playchess.com"]
[Source "ChessBase"]
[SourceQuality "1"]
[TimeControl "40/5400+30:1800+30"]

1. d4 {[%emt 0:00:17]} Nf6 {[%emt 0:00:11]} 2. Nf3 {[%emt 0:00:10]} d5 {[%emt 0:00:10]} 3. c4 {[%emt 0:00:12]} e6 {[%emt 0:00:10]} 4. Nc3 {[%emt 0:00:08]} Bb4 {[%emt 0:00:58]} 5. e3 {[%emt 0:03:07]} O-O {[%emt 0:00:32]} 6. Bd3 {[%emt 0:01:17]} b6 {[%emt 0:03:08]} 7. a3 {[%emt 0:03:46]} Be7 {[%emt 0:07:23]} 8. O-O {[%emt 0:06:00]} Bb7 {[%emt 0:00:14]} 9. cxd5 {[%emt 0:02:48]} exd5 {[%emt 0:00:15]} 10. b4 {[%emt 0:04:37]} Nbd7 {[%emt 0:01:48]} 11. Qb3 {[%emt 0:02:31]} a6 {[%emt 0:08:07]} 12. a4 {[%emt 0:05:54]} Bd6 {[%emt 1:13:34]} 13. b5 {[%emt 0:06:37]} a5 {[%emt 0:00:00]} 14. Ba3 {[%emt 0:00:56]} Re8 {[%emt 0:00:00]} 15. Rfc1 {[%emt 0:10:01]} Nf8 {[%emt 0:00:00]} 16. Bxd6 {[%emt 0:02:09]} cxd6 {[%emt 0:00:00]} 17. Rc2 {[%emt 0:06:03]} Rc8 {[%emt 0:00:00]} 18. Rac1 {[%emt 0:42:57]} Ne6 {[%emt 0:00:00]} 19. Ne2 {[%emt 0:00:00]} Rxc2 {[%emt 0:00:00]} 20. Rxc2 {[%emt 0:00:00]} Qd7 {[%emt 0:00:00]} 21. h3 {[%emt 0:00:00]} h6 {[%emt 0:00:00]} 22. Nc3 {[%emt 0:00:00]} g6 {[%emt 0:00:00]} 23. Bf1 {[%emt 0:00:00]} Ng7 {[%emt 0:00:00]} 24. Ne1 {[%emt 0:00:00]} Nf5 {[%emt 0:00:00]} 25. Nd3 {[%emt 0:00:00]} g5 {[%emt 0:00:00]} 26. g3 {[%emt 0:00:00]} Ne7 {[%emt 0:00:00]} 27. Ne1 {[%emt 0:00:00]} Kg7 {[%emt 0:00:00]} 28. Nd1 {[%emt 0:00:00]} Nf5 {[%emt 0:00:00]} 29. Qb2 {[%emt 0:00:00]} Ne7 {[%emt 0:00:00]} 30. Qc1 {[%emt 0:00:00]} Rc8 {[%emt 0:00:00]} 31. Rxc8 {[%emt 0:00:00]} Bxc8 {[%emt 0:00:00]} 32. f3 {[%emt 0:00:06]} Qd8 {[%emt 0:00:00]} 33. Nd3 {[%emt 0:00:57]} Bb7 {[%emt 0:00:00]} 34. N3f2 {[%emt 0:00:26]} Nf5 {[%emt 0:00:00]} 35. Kg2 {[%emt 0:01:02]} Nh5 {[%emt 0:00:00]} 36. Nh1 {[%emt 0:00:08]} Kf8 {[%emt 0:00:00]} 37. Bd3 {[%emt 0:00:51]} Nhg7 {[%emt 0:00:00]} 38. Qc2 {[%emt 0:01:21]} Qd7 {[%emt 0:00:00]} 39. Kf2 {[%emt 0:04:33]} h5 {[%emt 0:00:00]} 40. g4 {[%emt 0:00:23]} Ne7 {[%emt 0:00:00]} 41. Ng3 {[%emt 0:30:28]} h4 {[%emt 0:20:18]} 42. Ne2 {[%emt 0:00:00]} f5 {[%emt 0:00:00]} 43. Kg2 {[%emt 0:00:00]} Bc8 {[%emt 0:00:00]} 44. Nf2 {[%emt 0:00:00]} Ke8 {[%emt 0:25:42]} 45. Qc1 Qd8 46. f4 gxf4 47. exf4 Kf7 48. Ng1 Ng6 49. Nf3 Bd7 50. Ng5+ Kg8 51. Kf3 Qf6 52. Qe3 Nf8 53. gxf5 Bxf5 54. Ng4 Qg6 55. Bxf5 Nxf5 56. Qd3 Kg7 57. Ne3 Nxe3 58. Qxg6+ Nxg6 59. Kxe3 Kf6 60. Kf3 Kf5 {[%emt 0:00:00]} 61. Nf7 Nxf4 {[%emt 0:00:00]} 62. Nxd6+ Kg5 {[%emt 0:00:00]} 63. Nf7+ Kf5 {[%emt 0:00:00]} 64. Nd6+ Kg5 {[%emt 0:00:00]} 65. Nc8 Nxh3 {[%emt 0:00:00]} 66. Nxb6 Nf4 {[%emt 0:00:00]} 67. Nd7 Ne6 {[%emt 0:00:00]} 68. Ne5 Nxd4+ {[%emt 0:00:00]} 69. Kg2 Kf5 {[%emt 0:00:00]} 70. Nd3 Ke6 {[%emt 0:00:00]} 71. Kh3 Ne2 {[%emt 0:00:00]} 72. Kxh4 Nc3 {[%emt 0:00:00]} 73. Nc5+ Kd6 {[%emt 0:00:00]} 74. b6 Kc6 {[%emt 0:00:00]} 75. b7 Kc7 {[%emt 0:00:00]} 76. Kg4 d4 {[%emt 0:00:00]} 77. Kf3 Nxa4 {[%emt 0:00:00]} 1/2-1/2

[Event "Serbian League 2024"]
[Site "Bajina Basta"]
[Date "2024.09.28"]
[Round "2.13"]
[White "Hovhannisyan, Robert"]
[Black "Benkovic, Petar"]
[Result "1/2-1/2"]
[ECO "B81"]
[WhiteElo "2619"]
[BlackElo "2362"]
[Annotator "TA"]
[PlyCount "132"]
[EventDate "2024.09.26"]
[EventType "team-tourn"]
[EventCountry "SRB"]
[SourceTitle "playchess.com"]
[Source "ChessBase"]
[SourceQuality "1"]
[TimeControl "40/5400+30:1800+30"]

{[%evp 40,132,66,65,35,39,28,30,37,37,59,52,37,0,0,0,0,0,5,0,0,1,19,0,0,0,0,0,0,0,25,25,29,0,0,0,0,0,0,0,0,0,0,0,0,0,0,0,0,0,0,0,0,0,0,0,0,0,0,0,0,0,0,0,0,0,0,0,0,0,0,0,0,0,0,0,0,0,0,0,0,0,0,0,0,0,0,0,0,0,0,0,0,0,0]} 1. e4 {[%emt 0:00:05]} c5 {[%emt 0:00:57]} 2. Nf3 {[%emt 0:00:12]} e6 {[%emt 0:00:09]} 3. d4 {[%emt 0:00:06]} cxd4 {[%emt 0:00:07]} 4. Nxd4 {[%emt 0:00:07]} Nf6 {[%emt 0:00:10]} 5. Nc3 {[%emt 0:00:07]} d6 {[%emt 0:00:07]} 6. g4 {[%emt 0:00:58]} h6 {[%emt 0:00:17]} 7. Be3 {[%emt 0:01:39]} e5 {[%emt 0:03:03] B81: Sicilian Scheveningen: Keres Attack.} 8. Bb5+ {[%emt 0:00:49]} Bd7 {[%emt 0:00:30]} 9. Bxd7+ {[%emt 0:00:24]} Qxd7 {[%emt 0:00:03]} 10. Nf5 {[%emt 0:00:18]} g6 {[%emt 0:01:24]} 11. Nxh6 {[%emt 0:00:18]} Bxh6 {[%emt 0:00:12]} 12. g5 {[%emt 0:00:51]} Ng4 {[%emt 0:00:34]} 13. gxh6 {[%emt 0:00:06]} Nxe3 {[%emt 0:00:27]} 14. fxe3 {[%emt 0:00:05]} Nc6 {[%emt 0:00:39]} 15. Qd5 {[%emt 0:06:00]} O-O-O {[%emt 0:22:33]} 16. O-O-O {[%emt 0:03:18]} a6 {[%emt 0:09:30]} 17. Rhf1 {[%emt 0:02:12]} f5 {[%emt 0:03:21]} 18. Qd3 $146 {[%emt 0:07:59]} ({Predecessor:} 18. exf5 gxf5 19. Qf3 Ne7 20. Qh5 Rh7 21. Nd5 Nxd5 22. Rxd5 Rdh8 23. Qxf5 Qxf5 24. Rxf5 Rxh6 25. Rf2 Kc7 26. Rdd2 Rh3 27. e4 Re3 28. Rde2 Rxe2 29. Rxe2 Kc6 {½-½ Sabbatini,G (1937)-Ovaskainen,J (2300) WS TT/7/16/1 email 2016}) 18... Rxh6 {[%emt 0:02:20]} 19. exf5 {[%emt 0:00:29]} gxf5 {[%emt 0:02:14]} 20. Rxf5 {[%emt 0:02:34]} Qh7 {[%emt 0:18:46]} 21. Ne4 {[%emt 0:08:01]} Rxh2 {[%emt 0:08:11]} 22. Rf2 {[%emt 0:24:08]} d5 {[%emt 0:06:51]} 23. Rxh2 {[%emt 0:00:15]} Qxh2 {[%emt 0:00:03]} 24. Nc5 {[%emt 0:03:30]} Qh5 {[%emt 0:06:30]} 25. Qb3 {[%emt 0:02:21]} Qf7 {[%emt 0:01:05]} 26. Qb6 {[%emt 0:02:16]} d4 {[%emt 0:02:09]} ({Don't go for} 26... Qc7 $2 27. Qxc7+ Kxc7 28. Ne6+ Kd6 29. Nxd8 Nxd8 30. c4 $18) 27. e4 {[%emt 0:02:04]} Rd6 $1 {[%emt 0:02:23]} 28. b3 {[%emt 0:04:29]} Qc7 {[%emt 0:03:30]} (28... Rf6 {keeps more tension.} 29. Rh1 Rf1+ 30. Rxf1 Qxf1+ 31. Kb2 Qb5) 29. Qxc7+ {[%emt 0:00:06]} Kxc7 {[%emt 0:00:06]} 30. Rh1 {[%emt 0:00:30]} Kb6 {[%emt 0:01:31]} 31. Na4+ {[%emt 0:00:45]} Kc7 {[%emt 0:01:57]} 32. a3 {[%emt 0:01:09]} a5 {[%emt 0:01:32]} 33. Rh5 {[%emt 0:03:18]} b5 {[%emt 0:01:25]} 34. Nc5 {[%emt 0:00:06]} Kb6 {[%emt 0:00:21]} 35. Nd3 {[%emt 0:00:14]} Re6 {[%emt 0:00:33]} 36. b4 {[%emt 0:02:12]} axb4 {[%emt 0:00:30]} 37. axb4 {[%emt 0:00:02]} Kc7 {[%emt 0:00:59]} 38. Rh7+ {[%emt 0:00:40]} Kc8 $1 {[%emt 0:00:56]} 39. Kb2 {[%emt 0:01:23]} Rg6 {[%emt 0:00:53]} 40. Rh5 {[%emt 0:00:32]} Rg2 {[%emt 0:00:56]} 41. Rh4 {[%emt 0:42:31]} Kc7 {[%emt 0:01:09]} 42. Rh7+ {[%emt 0:00:00]} Kc8 {[%emt 0:02:54]} 43. Rh3 {[%emt 0:00:00]} Re2 {[%emt 0:02:15]} 44. Rh4 {[%emt 0:00:00]} Rg2 {[%emt 0:00:33]} 45. Rh5 {[%emt 0:00:00]} Re2 {[%emt 0:00:43]} 46. Rh6 {[%emt 0:00:00]} Kc7 {[%emt 0:00:38]} 47. Rh4 {[%emt 0:00:00]} Rg2 {[%emt 0:02:44]} 48. Kb3 {[%emt 0:00:00]} Rg3 {[%emt 0:00:50]} 49. Ka3 {[%emt 0:00:00]} Kc8 {[%emt 0:00:44]} 50. Kb2 {[%emt 0:00:00]} Rg2 {[%emt 0:00:51]} 51. Kb3 {[%emt 0:00:00]} Rg3 {[%emt 0:00:22]} 52. Rh1 {[%emt 0:00:00]} Re3 {[%emt 0:01:14]} 53. Re1 {[%emt 0:00:00]} Rxe1 {[%emt 0:01:05]} 54. Nxe1 {[%emt 0:00:00]} Kd7 {[%emt 0:00:37]} 55. Nd3 {[%emt 0:00:00]} Kd6 {[%emt 0:01:04]} 56. Kb2 {[%emt 0:00:00]} Ke6 {[%emt 0:01:02]} 57. Kc1 {[%emt 0:00:00]} Kf6 {[%emt 0:00:55]} 58. Kd2 {[%emt 0:00:00]} Kg5 {[%emt 0:02:28]} 59. Ke2 {[%emt 0:01:05]} Kg4 {[%emt 0:01:58]} 60. Kf2 {[%emt 0:00:25]} Kh3 {[%emt 0:01:39]} 61. Kf3 {[%emt 0:00:19]} Kh4 {[%emt 0:01:10]} 62. Kg2 {[%emt 0:00:14]} Kg4 {[%emt 0:00:37]} 63. Kf2 {[%emt 0:00:06]} Kh3 {[%emt 0:00:08]} 64. Kf3 {[%emt 0:00:12]} Kh4 {[%emt 0:01:11]} 65. Kg2 {[%emt 0:00:09]} Kg4 {[%emt 0:00:07]} 66. Kf2 {[%emt 0:00:03]} Kh3 {[%emt 0:00:09]} 1/2-1/2

[Event "Serbian League 2024"]
[Site "Bajina Basta"]
[Date "2024.09.28"]
[Round "2.14"]
[White "Eren, Ataberk"]
[Black "Grigoryan, Karen H."]
[Result "1/2-1/2"]
[ECO "E91"]
[WhiteElo "2386"]
[BlackElo "2569"]
[Annotator "RC"]
[PlyCount "184"]
[EventDate "2024.09.26"]
[EventType "team-tourn"]
[EventCountry "SRB"]
[SourceTitle "playchess.com"]
[Source "ChessBase"]
[SourceQuality "1"]
[TimeControl "40/5400+30:1800+30"]

1. d4 {[%emt 0:00:08]} Nf6 {[%emt 0:00:30]} 2. c4 {[%emt 0:00:07]} d6 {[%emt 0:00:28]} 3. Nf3 {[%emt 0:00:39]} g6 {[%emt 0:01:06]} 4. Nc3 {[%emt 0:00:11]} Bg7 {[%emt 0:00:22]} 5. e4 {[%emt 0:00:07]} O-O {[%emt 0:00:53]} 6. Be2 {[%emt 0:00:12]} Nbd7 {[%emt 0:00:25]} 7. Be3 {[%emt 0:01:30]} c6 {[%emt 0:00:47]} 8. O-O {[%emt 0:03:34]} a6 {[%emt 0:02:04]} 9. a4 {[%emt 0:08:02]} a5 {[%emt 0:02:20]} 10. h3 {[%emt 0:00:48]} e5 {[%emt 0:00:41]} 11. Qc2 {[%emt 0:10:09]} Qe7 {[%emt 0:01:39]} 12. Rfe1 {[%emt 0:05:29]} Re8 {[%emt 0:00:48]} 13. Rad1 {[%emt 0:04:00]} exd4 {[%emt 0:02:09]} 14. Bxd4 {[%emt 0:00:58]} Nc5 {[%emt 0:07:35]} 15. Bf1 {[%emt 0:04:03]} Be6 {[%emt 0:01:26]} 16. Ng5 {[%emt 0:07:39]} h6 {[%emt 0:13:39]} 17. Nxe6 {[%emt 0:01:12]} Nxe6 {[%emt 0:00:14]} 18. Be3 {[%emt 0:00:18]} Nd7 {[%emt 0:05:25]} 19. g3 {[%emt 0:19:34]} Nec5 {[%emt 0:06:22]} 20. Bg2 {[%emt 0:00:48]} Rad8 {[%emt 0:00:29]} 21. f4 {[%emt 0:09:18]} Qf8 {[%emt 0:02:14]} 22. Bf2 {[%emt 0:01:21]} Na6 {[%emt 0:03:50]} 23. Na2 {[%emt 0:08:56]} Ndc5 {[%emt 0:01:05]} 24. Re2 {[%emt 0:00:37]} Re6 {[%emt 0:01:40]} 25. Be1 {[%emt 0:02:09]} b6 {[%emt 0:08:57]} 26. f5 {[%emt 0:01:32]} Re5 {[%emt 0:01:21]} 27. b4 {[%emt 0:01:20]} axb4 {[%emt 0:00:31]} 28. Nxb4 {[%emt 0:00:03]} Nxb4 {[%emt 0:00:28]} 29. Bxb4 {[%emt 0:00:04]} Qe7 {[%emt 0:06:13]} 30. Bc3 {[%emt 0:01:05]} Re8 {[%emt 0:02:54]} 31. Bxe5 {[%emt 0:07:20]} Bxe5 {[%emt 0:00:13]} 32. Rf1 {[%emt 0:01:10]} g5 {[%emt 0:00:36]} 33. Kh1 {[%emt 0:01:04]} Ra8 {[%emt 0:02:40]} 34. f6 {[%emt 0:00:35]} Qe6 {[%emt 0:00:21]} 35. Re3 {[%emt 0:01:10]} Rxa4 {[%emt 0:00:31]} 36. Qb1 {[%emt 0:00:46]} Nd7 {[%emt 0:01:09]} 37. Qd1 {[%emt 0:00:28]} Ra1 {[%emt 0:02:08]} 38. Qh5 {[%emt 0:00:22]} Rxf1+ {[%emt 0:00:36]} 39. Bxf1 {[%emt 0:00:02]} Qxf6 {[%emt 0:01:06]} 40. Rf3 {[%emt 0:00:12]} Qe6 {[%emt 0:00:23]} 41. h4 {[%emt 0:31:21]} g4 {[%emt 0:36:16]} 42. Ra3 {[%emt 0:00:00]} Kg7 {[%emt 0:00:00]} 43. Qf5 {[%emt 0:00:00]} Qxf5 {[%emt 0:00:00]} 44. exf5 {[%emt 0:00:00]} Bd4 {[%emt 0:00:00]} 45. Ra7 {[%emt 0:00:00]} Nf6 {[%emt 0:00:00]} 46. Rc7 {[%emt 0:00:00]} Be5 {[%emt 0:00:00]} 47. Rxc6 {[%emt 0:00:00]} Ne4 {[%emt 0:00:00]} 48. Kg2 {[%emt 0:00:00]} Nxg3 {[%emt 0:00:00]} 49. Bd3 {[%emt 0:00:00]} Nh5 {[%emt 0:00:00]} 50. Be2 {[%emt 0:00:00]} Nf4+ {[%emt 0:00:00]} 51. Kf1 {[%emt 0:00:00]} g3 {[%emt 0:00:00]} 52. Bf3 {[%emt 0:00:00]} Kf6 {[%emt 0:00:00]} 53. Rxb6 {[%emt 0:00:00]} Kxf5 {[%emt 0:00:00]} 54. Rb7 {[%emt 0:00:51]} f6 {[%emt 0:00:00]} 55. Rg7 {[%emt 0:01:34]} Ng6 {[%emt 0:00:00]} 56. Bb7 {[%emt 0:02:00]} Nf4 {[%emt 0:04:27]} 57. Rxg3 {[%emt 0:00:17]} d5 {[%emt 0:00:52]} 58. cxd5 {[%emt 0:01:42]} Nxd5 {[%emt 0:00:11]} 59. Rg7 {[%emt 0:00:25]} Ne3+ {[%emt 0:01:04]} 60. Ke2 {[%emt 0:00:21]} Kf4 {[%emt 0:00:08]} 61. Bc8 {[%emt 0:02:49]} h5 {[%emt 0:01:15]} 62. Rh7 {[%emt 0:00:24]} Ng2 {[%emt 0:00:23]} 63. Kf2 {[%emt 0:00:40]} Nxh4 {[%emt 0:00:19]} 64. Rxh5 {[%emt 0:00:06]} Bd4+ {[%emt 0:00:03]} 65. Ke2 {[%emt 0:00:06]} Kg3 {[%emt 0:00:13]} 66. Kd3 {[%emt 0:00:25]} Be5 {[%emt 0:00:32]} 67. Ke4 {[%emt 0:00:14]} Ng6 {[%emt 0:00:22]} 68. Rh3+ {[%emt 0:00:29]} Kg2 {[%emt 0:00:09]} 69. Ra3 {[%emt 0:00:28]} Nf4 {[%emt 0:00:08]} 70. Bb7 {[%emt 0:00:10]} Kf2 {[%emt 0:00:41]} 71. Ba6 {[%emt 0:00:39]} Ne6 {[%emt 0:00:28]} 72. Bc4 {[%emt 0:00:27]} Ng5+ {[%emt 0:00:13]} 73. Kf5 {[%emt 0:00:09]} Nf3 {[%emt 0:00:15]} 74. Bd5 {[%emt 0:00:19]} Nd4+ {[%emt 0:00:08]} 75. Ke4 {[%emt 0:00:16]} Kg2 {[%emt 0:00:40]} 76. Bc4 {[%emt 0:00:53]} Kf2 {[%emt 0:00:34]} 77. Ra2+ {[%emt 0:00:09]} Kg3 {[%emt 0:00:06]} 78. Bf1 {[%emt 0:00:06]} Ne6 {[%emt 0:00:56]} 79. Rg2+ {[%emt 0:00:17]} Kh4 {[%emt 0:00:06]} 80. Rg1 {[%emt 0:00:47]} Kh5 {[%emt 0:00:36]} 81. Rg8 {[%emt 0:00:24]} Kh6 {[%emt 0:00:16]} 82. Be2 {[%emt 0:00:32]} Kh7 {[%emt 0:00:19]} 83. Rg1 {[%emt 0:00:22]} Nd4 {[%emt 0:02:22]} 84. Bc4 {[%emt 0:00:09]} Kh6 {[%emt 0:00:13]} 85. Bf7 {[%emt 0:00:05]} Kh7 {[%emt 0:00:10]} 86. Rg6 {[%emt 0:00:37]} Nc6 {[%emt 0:00:36]} 87. Rg2 {[%emt 0:00:37]} Nd4 {[%emt 0:00:08]} 88. Kd5 {[%emt 0:00:05]} Kh6 {[%emt 0:00:12]} 89. Kc5 {[%emt 0:00:12]} Kh7 {[%emt 0:00:15]} 90. Kb6 {[%emt 0:00:13]} Kh6 {[%emt 0:00:36]} 91. Kb7 {[%emt 0:00:06]} Nf5 {[%emt 0:00:35]} 92. Kc6 {[%emt 0:01:26]} Ng3 {[%emt 0:00:09]} 1/2-1/2

[Event "Serbian League 2024"]
[Site "Bajina Basta"]
[Date "2024.09.28"]
[Round "2.15"]
[White "Stankovic, Milos"]
[Black "Ozsakallioglu, Okan"]
[Result "1-0"]
[ECO "C47"]
[WhiteElo "2466"]
[BlackElo "2349"]
[Annotator "TA"]
[PlyCount "25"]
[EventDate "2024.09.26"]
[EventType "team-tourn"]
[EventCountry "SRB"]
[SourceTitle "playchess.com"]
[Source "ChessBase"]
[SourceQuality "1"]
[TimeControl "40/5400+30:1800+30"]

{[%evp 9,25,0,67,50,62,22,14,15,29,31,65,66,83,101,118,114,120,120]} 1. e4 {[%emt 0:00:19]} e5 {[%emt 0:00:31]} 2. Nf3 {[%emt 0:00:30]} Nf6 {[%emt 0:00:07]} 3. Nc3 {[%emt 0:00:31]} Nc6 {[%emt 0:00:04]} 4. a3 {[%emt 0:02:27]} d5 {[%emt 0:06:33]} 5. Bb5 {[%emt 0:03:29]} Qd6 {[%emt 0:10:35]} (5... Nxe4 $11 6. Nxe5 Qf6) 6. exd5 {[%emt 0:29:42]} Nxd5 {[%emt 0:00:04]} 7. Nxd5 {[%emt 0:01:13]} Qxd5 {[%emt 0:00:15]} 8. Qe2 {[%emt 0:01:23] The position is equal.} f6 {[%emt 0:25:22][%cal Bf7f6,Bf6e5][%mdl 32]} 9. c4 {[%emt 0:11:42]} Qd6 {[%emt 0:08:19]} 10. d4 {[%emt 0:02:57]} Bd7 {[%emt 0:00:08]} 11. dxe5 {[%emt 0:05:10] White is better.} fxe5 {[%emt 0:01:24]} 12. Bg5 {[%emt 0:03:38] And now 0-0 would win.} Be7 {[%emt 0:02:09]} 13. Rd1 {[%emt 0:05:59] Weighted Error Value: White=0.09 (flawless) /Black=0.28 (precise) .  Inaccurate:     	White=1     	Black=1      OK:         	White=4     	---        Best:        	White=1     	---} 1-0

[Event "Serbian League 2024"]
[Site "Bajina Basta"]
[Date "2024.09.28"]
[Round "2.16"]
[White "Ljepic, Andrej"]
[Black "Tadic, Stefan"]
[Result "1-0"]
[ECO "C26"]
[WhiteElo "2326"]
[BlackElo "2440"]
[Annotator "TA"]
[PlyCount "63"]
[EventDate "2024.09.26"]
[EventType "team-tourn"]
[EventCountry "SRB"]
[SourceTitle "playchess.com"]
[Source "ChessBase"]
[SourceQuality "1"]
[TimeControl "40/5400+30:1800+30"]

{[%evp 9,63,14,38,45,40,20,72,72,56,79,89,86,120,89,89,91,85,90,88,80,83,54,47,42,88,62,72,59,50,43,94,95,101,90,127,116,121,120,155,161,154,164,250,250,262,248,324,303,298,299,636,642,608,608,1114,1070]} 1. e4 {[%emt 0:00:03]} e5 {[%emt 0:00:41]} 2. Nc3 {[%emt 0:00:06]} Nf6 {[%emt 0:00:14]} 3. g3 {[%emt 0:00:04]} d5 {[%emt 0:08:19]} 4. exd5 {[%emt 0:00:43]} Nxd5 {[%emt 0:00:05]} 5. Bg2 {[%emt 0:00:05]} Nb6 {[%emt 0:00:05]} 6. Nf3 {[%emt 0:01:13]} Nc6 {[%emt 0:00:31]} 7. O-O {[%emt 0:00:28]} Be7 {[%emt 0:02:16]} (7... Bc5 $11 {keeps the balance.}) 8. Re1 $16 {[%emt 0:00:57][%cal Oa2a4] White is better.} f6 {[%emt 0:01:30] [#]} 9. d4 $1 {[%emt 0:05:15]} exd4 {[%emt 0:17:52]} (9... Bg4 10. dxe5) 10. Nb5 {[%emt 0:00:32][%cal Oc1f4] Strongly threatening Bf4!} O-O {[%emt 0:02:43]} 11. Nbxd4 {[%emt 0:10:22] White is more active.} ({But not} 11. Nfxd4 $6 Ne5 $11) 11... Nxd4 {[%emt 0:00:32]} 12. Nxd4 {[%emt 0:01:08][%cal Bf3d4,Bd4b3,Bb3a5][%mdl 32]} Bc5 {[%emt 0:00:38]} 13. Nb3 {[%emt 0:13:53]} Qxd1 {[%emt 0:05:52]} 14. Rxd1 {[%emt 0:00:08]} Bd6 {[%emt 0:03:16]} 15. Na5 {[%emt 0:06:17]} Rb8 $1 {[%emt 0:04:54]} 16. c3 {[%emt 0:05:25]} f5 {[%emt 0:05:15]} (16... Re8 $14) 17. Be3 {[%emt 0:14:33]} f4 {[%emt 0:01:41]} 18. Bxf4 {[%emt 0:01:41]} Bxf4 {[%emt 0:00:07]} 19. gxf4 {[%emt 0:00:05]} c6 {[%emt 0:01:12]} (19... Rxf4 $14 20. Rd8+ Rf8) 20. Rd4 {[%emt 0:01:35]} Be6 {[%emt 0:14:27]} 21. Re1 {[%emt 0:05:09]} Rf6 {[%emt 0:00:05]} 22. c4 {[%emt 0:14:02][%cal Bc3c4,Bc4c5][%mdl 32]} Rbf8 {[%emt 0:03:44]} 23. b3 {[%emt 0:01:15]} Bc8 {[%emt 0:02:43]} 24. Re7 {[%emt 0:02:59]} R6f7 {[%emt 0:04:35]} 25. Rxf7 {[%emt 0:01:04]} Rxf7 {[%emt 0:01:12] [#]} (25... Kxf7 {was worth a try.} 26. c5 Nd5) 26. c5 $1 $18 {[%emt 0:01:12]} Na8 {[%emt 0:06:38]} 27. Nc4 {[%emt 0:03:05]} Rd7 {[%emt 0:05:32]} 28. Nd6 {[%emt 0:01:51]} Rd8 {[%emt 0:00:07]} 29. Ra4 {[%emt 0:02:32]} Be6 $2 {[%emt 0:06:33]} (29... a6 30. Rb4 a5) 30. Rxa7 {[%emt 0:00:44] White is clearly winning.} Nc7 {[%emt 0:00:03]} 31. f5 {[%emt 0:00:48][%cal Bf4f5,Bf5e6][%mdl 32]} Nb5 {[%emt 0:00:43]} 32. fxe6 {[%emt 0:00:15] Weighted Error Value: White=0.05 (flawless) /Black=0.29 (precise) .  Mistake:       	---       	Black=5      Inaccurate:     	White=1     	Black=3      OK:         	White=10    	Black=7      Best:        	White=3     	Black=1      Strong:       	White=1     	Black=1} ({Worse is} 32. Nxb7 Rd1+ 33. Bf1 Nxa7 34. fxe6 Kf8 $11) 1-0

[Event "Serbian League 2024"]
[Site "Bajina Basta"]
[Date "2024.09.28"]
[Round "2.17"]
[White "Ratkovic, Milovan"]
[Black "Ivanovic, Dragutin"]
[Result "1-0"]
[ECO "B12"]
[WhiteElo "2429"]
[BlackElo "2308"]
[Annotator "ChessBase"]
[PlyCount "85"]
[EventDate "2024.09.26"]
[EventType "team-tourn"]
[EventCountry "SRB"]
[SourceTitle "playchess.com"]
[Source "ChessBase"]
[SourceQuality "1"]
[TimeControl "40/5400+30:1800+30"]

1. d4 {[%emt 0:00:09]} d6 {[%emt 0:00:14]} 2. e4 {[%emt 0:01:03]} Nd7 {[%emt 0:01:45]} 3. Nc3 {[%emt 0:01:22]} c6 {[%emt 0:00:25]} 4. Be3 {[%emt 0:14:19]} Qa5 {[%emt 0:00:44]} 5. Qd2 {[%emt 0:03:38]} h6 {[%emt 0:03:05]} 6. f3 {[%emt 0:05:00]} g5 {[%emt 0:01:19]} 7. Nge2 {[%emt 0:00:42]} Bg7 {[%emt 0:00:20]} 8. Ng3 {[%emt 0:00:40]} Ndf6 {[%emt 0:06:36]} 9. Be2 {[%emt 0:02:32]} g4 {[%emt 0:03:25]} 10. O-O {[%emt 0:12:14]} h5 {[%emt 0:01:24]} 11. fxg4 {[%emt 0:06:02]} hxg4 {[%emt 0:20:44]} 12. Nf5 {[%emt 0:09:46]} Bxf5 {[%emt 0:01:19]} 13. Rxf5 {[%emt 0:00:20]} Qb4 {[%emt 0:10:20]} 14. a3 {[%emt 0:07:20]} Qxb2 {[%emt 0:03:53]} 15. Rb1 {[%emt 0:06:08]} Nxe4 {[%emt 0:03:17]} 16. Rxb2 {[%emt 0:00:39]} Nxd2 {[%emt 0:00:08]} 17. Rxb7 {[%emt 0:07:05]} Bh6 {[%emt 0:14:41]} 18. Rg5 {[%emt 0:03:28]} O-O-O {[%emt 0:09:51]} 19. Ba6 {[%emt 0:09:29]} f6 {[%emt 0:00:26]} 20. Nb5 {[%emt 0:05:15]} Rf8 {[%emt 0:04:03]} 21. Bxd2 {[%emt 0:03:06]} cxb5 {[%emt 0:02:44]} 22. Rbxb5+ {[%emt 0:00:40]} Kd7 {[%emt 0:00:58]} 23. Rb7+ {[%emt 0:00:14]} Ke8 {[%emt 0:00:32]} 24. Rxg8 {[%emt 0:00:46]} Rfxg8 {[%emt 0:02:13]} 25. Bxh6 {[%emt 0:00:28]} Rxh6 {[%emt 0:00:07]} 26. Rb8+ {[%emt 0:00:29]} Kf7 {[%emt 0:00:04]} 27. Bc4+ {[%emt 0:00:08]} e6 {[%emt 0:00:04]} 28. Bxe6+ {[%emt 0:00:12]} Kxe6 {[%emt 0:00:04]} 29. Rxg8 {[%emt 0:00:04]} f5 {[%emt 0:00:27]} 30. c4 {[%emt 0:00:21]} Rh7 {[%emt 0:00:12]} 31. Rg6+ {[%emt 0:00:15]} Ke7 {[%emt 0:00:33]} 32. d5 {[%emt 0:00:54]} a5 {[%emt 0:01:02]} 33. Re6+ {[%emt 0:00:18]} Kd7 {[%emt 0:00:09]} 34. Rf6 {[%emt 0:00:19]} Re7 {[%emt 0:00:12]} 35. Rxf5 {[%emt 0:00:38]} Re4 {[%emt 0:00:03]} 36. Rf7+ {[%emt 0:00:08]} Kc8 {[%emt 0:00:21]} 37. Ra7 {[%emt 0:01:12]} Rxc4 {[%emt 0:00:10]} 38. Rxa5 {[%emt 0:00:11]} Rc3 {[%emt 0:01:43]} 39. Kf2 {[%emt 0:00:45]} Kc7 {[%emt 0:01:04]} 40. Ra7+ {[%emt 0:01:11]} Kb6 {[%emt 0:00:27]} 41. Rd7 {[%emt 0:03:33]} Rxa3 {[%emt 0:01:26]} 42. Rxd6+ {[%emt 0:00:35]} Kc5 {[%emt 0:00:03]} 43. Rg6 {[%emt 0:01:42]} 1-0